[Event "Titled Tuesday Blitz March 01 Early 2022"]
[White "Alfaro, William"]
[Black "Tsvetkov, Andrey"]
[WhiteFideId "6100457"]
[BlackFideId "34139360"]
[WhiteElo "2066"]
[BlackElo "2280"]
[Result "0-1"]
[Round "01"]
[TimeControl "180+1"]
[Date "2022.03.01"]
[WhiteClock "0:01:34"]
[BlackClock "0:01:41"]

1. e4 {[%clk 0:02:56]}  c5 {[%clk 0:02:54]} 2. Nf3 {[%clk 0:02:55]}  d6 {[%clk 0:02:49]} 3. d4 {[%clk 0:02:54]}  cxd4 {[%clk 0:02:50]} 4. Nxd4 {[%clk 0:02:55]}  Nf6 {[%clk 0:02:47]} 5. Nc3 {[%clk 0:02:55]}  a6 {[%clk 0:02:47]} 6. Bg5 {[%clk 0:02:53]}  Nbd7 {[%clk 0:02:47]} 7. Qf3 {[%clk 0:02:53]}  g6 {[%clk 0:02:39]} 8. O-O-O {[%clk 0:02:52]}  Bg7 {[%clk 0:02:39]} 9. Be2 {[%clk 0:02:47]}  O-O {[%clk 0:02:36]} 10. h4 {[%clk 0:02:47]}  h5 {[%clk 0:02:23]} 11. Qe3 {[%clk 0:02:42]}  Ne5 {[%clk 0:02:20]} 12. f3 {[%clk 0:02:40]}  b5 {[%clk 0:02:19]} 13. Bxf6 {[%clk 0:02:39]}  Bxf6 {[%clk 0:02:17]} 14. Nd5 {[%clk 0:02:37]}  Bg7 {[%clk 0:02:14]} 15. Kb1 {[%clk 0:02:26]}  Bb7 {[%clk 0:02:08]} 16. Nb3 {[%clk 0:02:24]}  Bxd5 {[%clk 0:02:00]} 17. Rxd5 {[%clk 0:02:23]}  Nc4 {[%clk 0:02:01]} 18. Bxc4 {[%clk 0:02:14]}  bxc4 {[%clk 0:02:02]} 19. Nd2 {[%clk 0:02:14]}  e6 {[%clk 0:01:58]} 20. Nxc4 {[%clk 0:02:11]}  exd5 {[%clk 0:01:57]} 21. exd5 {[%clk 0:02:12]}  Rb8 {[%clk 0:01:55]} 22. b3 {[%clk 0:02:02]}  Qf6 {[%clk 0:01:51]} 23. c3 {[%clk 0:01:52]}  Rfc8 {[%clk 0:01:48]} 24. Kc2 {[%clk 0:01:49]}  Qf5+ {[%clk 0:01:46]} 25. Qd3 {[%clk 0:01:48]}  Qxd3+ {[%clk 0:01:42]} 26. Kxd3 {[%clk 0:01:49]}  Rb5 {[%clk 0:01:42]} 27. Ke4 {[%clk 0:01:38]}  Re8+ {[%clk 0:01:42]} 28. Kd3 {[%clk 0:01:37]}  Rxd5+ {[%clk 0:01:43]} 29. Kc2 {[%clk 0:01:38]}  Re2+ {[%clk 0:01:43]} 30. Kb1 {[%clk 0:01:35]}  Bxc3 {[%clk 0:01:43]} 31. Rc1 {[%clk 0:01:34]}  Bg7 {[%clk 0:01:41]} 0-1


[Site "https://www.chess.com"]

[Event "Titled Tuesday Blitz March 01 Early 2022"]
[White "Araujo Filho, Luiz Antonio Coel"]
[Black "Martin Duque, Jesus"]
[WhiteFideId "2130661"]
[BlackFideId "2208954"]
[WhiteElo "2155"]
[BlackElo "2243"]
[Result "0-1"]
[Round "01"]
[TimeControl "180+1"]
[Date "2022.03.01"]
[WhiteClock "0:00:07"]
[BlackClock "0:01:06"]

1. d4 {[%clk 0:03:00]}  Nf6 {[%clk 0:02:54]} 2. Nf3 {[%clk 0:02:59]}  b6 {[%clk 0:02:54]} 3. e3 {[%clk 0:02:59]}  Bb7 {[%clk 0:02:54]} 4. Bd3 {[%clk 0:03:00]}  e6 {[%clk 0:02:53]} 5. Nbd2 {[%clk 0:03:00]}  d5 {[%clk 0:02:53]} 6. Qe2 {[%clk 0:02:59]}  g6 {[%clk 0:02:51]} 7. O-O {[%clk 0:02:56]}  Bg7 {[%clk 0:02:51]} 8. c3 {[%clk 0:02:54]}  Nbd7 {[%clk 0:02:51]} 9. e4 {[%clk 0:02:55]}  dxe4 {[%clk 0:02:51]} 10. Nxe4 {[%clk 0:02:55]}  O-O {[%clk 0:02:51]} 11. Re1 {[%clk 0:02:49]}  Re8 {[%clk 0:02:50]} 12. Bg5 {[%clk 0:02:46]}  h6 {[%clk 0:02:50]} 13. Bh4 {[%clk 0:02:46]}  Qc8 {[%clk 0:02:47]} 14. Nxf6+ {[%clk 0:02:40]}  Nxf6 {[%clk 0:02:47]} 15. Ne5 {[%clk 0:02:37]}  Nd5 {[%clk 0:02:43]} 16. Qg4 {[%clk 0:02:08]}  g5 {[%clk 0:02:29]} 17. Bg3 {[%clk 0:01:36]}  f5 {[%clk 0:02:24]} 18. Qh5 {[%clk 0:01:33]}  Re7 {[%clk 0:02:19]} 19. f3 {[%clk 0:01:26]}  a6 {[%clk 0:02:10]} 20. h4 {[%clk 0:01:20]}  Qe8 {[%clk 0:02:08]} 21. Qxe8+ {[%clk 0:01:06]}  Raxe8 {[%clk 0:02:08]} 22. hxg5 {[%clk 0:01:06]}  hxg5 {[%clk 0:02:08]} 23. Rad1 {[%clk 0:01:05]}  Rd8 {[%clk 0:01:55]} 24. Bc4 {[%clk 0:00:53]}  b5 {[%clk 0:01:54]} 25. Bb3 {[%clk 0:00:49]}  f4 {[%clk 0:01:46]} 26. Bf2 {[%clk 0:00:48]}  Ree8 {[%clk 0:01:44]} 27. Ng4 {[%clk 0:00:40]}  a5 {[%clk 0:01:33]} 28. a3 {[%clk 0:00:39]}  Rd6 {[%clk 0:01:27]} 29. Re2 {[%clk 0:00:38]}  a4 {[%clk 0:01:26]} 30. Ba2 {[%clk 0:00:37]}  Nb6 {[%clk 0:01:25]} 31. Rde1 {[%clk 0:00:30]}  Bd5 {[%clk 0:01:26]} 32. Bxd5 {[%clk 0:00:29]}  Nxd5 {[%clk 0:01:24]} 33. Ne5 {[%clk 0:00:29]}  c6 {[%clk 0:01:21]} 34. Nd3 {[%clk 0:00:29]}  Kf7 {[%clk 0:01:18]} 35. Nc5 {[%clk 0:00:28]}  Nb6 {[%clk 0:01:15]} 36. Kf1 {[%clk 0:00:21]}  Nc4 {[%clk 0:01:14]} 37. Kg1 {[%clk 0:00:22]}  Bf8 {[%clk 0:01:12]} 38. Nd3 {[%clk 0:00:13]}  Rd5 {[%clk 0:01:12]} 39. Kf1 {[%clk 0:00:12]}  Bd6 {[%clk 0:01:12]} 40. Kg1 {[%clk 0:00:12]}  Rf5 {[%clk 0:01:08]} 41. Ne5+ {[%clk 0:00:11]}  Bxe5 {[%clk 0:01:08]} 42. dxe5 {[%clk 0:00:12]}  Rd8 {[%clk 0:01:08]} 43. Bd4 {[%clk 0:00:11]}  Rd5 {[%clk 0:01:08]} 44. Kf2 {[%clk 0:00:11]}  c5 {[%clk 0:01:06]} 45. Bxc5 {[%clk 0:00:07]}  Rxc5 {[%clk 0:01:06]} 46. Rd1 {[%clk 0:00:07]}  Rd5 {[%clk 0:01:04]} 47. Rxd5 {[%clk 0:00:06]}  exd5 {[%clk 0:01:05]} 48. e6+ {[%clk 0:00:07]}  Ke7 {[%clk 0:01:06]} 0-1


[Site "https://www.chess.com"]

[Event "Titled Tuesday Blitz March 01 Early 2022"]
[White "Astasio Lopez, David"]
[Black "Caruana, Fabiano"]
[WhiteFideId "2230208"]
[BlackFideId "2020009"]
[WhiteElo "2355"]
[BlackElo "2744"]
[Result "1/2-1/2"]
[Round "01"]
[TimeControl "180+1"]
[Date "2022.03.01"]
[WhiteClock "0:00:14"]
[BlackClock "0:00:05"]

1. d4 {[%clk 0:03:00]}  d5 {[%clk 0:03:00]} 2. Nf3 {[%clk 0:03:00]}  Nf6 {[%clk 0:02:59]} 3. Nbd2 {[%clk 0:03:00]}  Bf5 {[%clk 0:02:59]} 4. c3 {[%clk 0:03:00]}  e6 {[%clk 0:02:59]} 5. Qb3 {[%clk 0:03:01]}  Qc8 {[%clk 0:02:59]} 6. Nh4 {[%clk 0:03:01]}  Bg6 {[%clk 0:02:57]} 7. g3 {[%clk 0:03:01]}  Nbd7 {[%clk 0:02:57]} 8. Bg2 {[%clk 0:03:02]}  c5 {[%clk 0:02:55]} 9. O-O {[%clk 0:03:02]}  Be7 {[%clk 0:02:55]} 10. Re1 {[%clk 0:03:02]}  O-O {[%clk 0:02:54]} 11. Nxg6 {[%clk 0:03:01]}  hxg6 {[%clk 0:02:55]} 12. e4 {[%clk 0:03:02]}  cxd4 {[%clk 0:02:54]} 13. cxd4 {[%clk 0:03:01]}  dxe4 {[%clk 0:02:53]} 14. Nxe4 {[%clk 0:03:02]}  Nd5 {[%clk 0:02:53]} 15. Bg5 {[%clk 0:02:58]}  Bxg5 {[%clk 0:02:51]} 16. Nxg5 {[%clk 0:02:58]}  N7f6 {[%clk 0:02:51]} 17. Rac1 {[%clk 0:02:56]}  Qd7 {[%clk 0:02:50]} 18. Nf3 {[%clk 0:02:55]}  Rac8 {[%clk 0:02:49]} 19. Ne5 {[%clk 0:02:56]}  Qe7 {[%clk 0:02:37]} 20. h3 {[%clk 0:02:47]}  Rc7 {[%clk 0:02:30]} 21. Rxc7 {[%clk 0:02:42]}  Qxc7 {[%clk 0:02:31]} 22. Nd3 {[%clk 0:02:28]}  Rc8 {[%clk 0:02:31]} 23. Rc1 {[%clk 0:02:28]}  Qd7 {[%clk 0:02:23]} 24. Rc5 {[%clk 0:02:19]}  b6 {[%clk 0:02:21]} 25. Rc2 {[%clk 0:02:14]}  g5 {[%clk 0:02:19]} 26. a3 {[%clk 0:02:11]}  g6 {[%clk 0:02:17]} 27. Ne5 {[%clk 0:01:55]}  Qb7 {[%clk 0:02:17]} 28. Rxc8+ {[%clk 0:01:46]}  Qxc8 {[%clk 0:02:18]} 29. Qc4 {[%clk 0:01:45]}  Qxc4 {[%clk 0:02:17]} 30. Nxc4 {[%clk 0:01:46]}  Kf8 {[%clk 0:02:14]} 31. Nd6 {[%clk 0:01:44]}  a5 {[%clk 0:02:13]} 32. Nc4 {[%clk 0:01:40]}  Ke7 {[%clk 0:02:12]} 33. Kf1 {[%clk 0:01:39]}  Nd7 {[%clk 0:01:56]} 34. Ke2 {[%clk 0:01:35]}  f6 {[%clk 0:01:47]} 35. Kd3 {[%clk 0:01:34]}  a4 {[%clk 0:01:46]} 36. Bf3 {[%clk 0:01:27]}  b5 {[%clk 0:01:44]} 37. Ne3 {[%clk 0:01:25]}  N7b6 {[%clk 0:01:41]} 38. Bxd5 {[%clk 0:01:18]}  exd5 {[%clk 0:01:41]} 39. Kc3 {[%clk 0:01:16]}  Kd6 {[%clk 0:01:39]} 40. Ng4 {[%clk 0:01:09]}  Nd7 {[%clk 0:01:36]} 41. Kb4 {[%clk 0:01:05]}  f5 {[%clk 0:01:19]} 42. Ne3 {[%clk 0:00:58]}  Kc6 {[%clk 0:01:18]} 43. Nd1 {[%clk 0:00:52]}  Nb6 {[%clk 0:01:06]} 44. Nc3 {[%clk 0:00:50]}  Nc4 {[%clk 0:01:06]} 45. Nxb5 {[%clk 0:00:41]}  Nxb2 {[%clk 0:01:05]} 46. f3 {[%clk 0:00:32]}  Nd3+ {[%clk 0:00:50]} 47. Kxa4 {[%clk 0:00:32]}  Ne1 {[%clk 0:00:50]} 48. Na7+ {[%clk 0:00:27]}  Kb7 {[%clk 0:00:48]} 49. Nb5 {[%clk 0:00:25]}  Nxf3 {[%clk 0:00:48]} 50. Kb4 {[%clk 0:00:25]}  f4 {[%clk 0:00:30]} 51. gxf4 {[%clk 0:00:24]}  gxf4 {[%clk 0:00:31]} 52. Kc3 {[%clk 0:00:24]}  Ng5 {[%clk 0:00:24]} 53. h4 {[%clk 0:00:20]}  Nf3 {[%clk 0:00:23]} 54. Nd6+ {[%clk 0:00:17]}  Kc6 {[%clk 0:00:22]} 55. Nf7 {[%clk 0:00:17]}  Nxh4 {[%clk 0:00:22]} 56. a4 {[%clk 0:00:16]}  Kb6 {[%clk 0:00:18]} 57. Ne5 {[%clk 0:00:13]}  g5 {[%clk 0:00:17]} 58. Kd3 {[%clk 0:00:13]}  Ka5 {[%clk 0:00:15]} 59. Nc6+ {[%clk 0:00:13]}  Kxa4 {[%clk 0:00:15]} 60. Ne7 {[%clk 0:00:14]}  Kb5 {[%clk 0:00:12]} 61. Nxd5 {[%clk 0:00:15]}  Kc6 {[%clk 0:00:13]} 62. Nf6 {[%clk 0:00:15]}  Nf5 {[%clk 0:00:10]} 63. d5+ {[%clk 0:00:12]}  Kb5 {[%clk 0:00:07]} 64. Ke4 {[%clk 0:00:13]}  Nd6+ {[%clk 0:00:05]} 65. Kf3 {[%clk 0:00:13]}  Kc4 {[%clk 0:00:06]} 66. Nh7 {[%clk 0:00:13]}  Nf7 {[%clk 0:00:05]} 67. d6 {[%clk 0:00:14]}  Nxd6 {[%clk 0:00:05]} 68. Nxg5 {[%clk 0:00:13]}  Kd5 {[%clk 0:00:06]} 69. Nh3 {[%clk 0:00:13]}  Ke5 {[%clk 0:00:05]} 70. Nxf4 {[%clk 0:00:14]} 1/2-1/2


[Site "https://www.chess.com"]

[Event "Titled Tuesday Blitz March 01 Early 2022"]
[White "Aydin, Gulenay"]
[Black "Siva Mahadevan"]
[WhiteFideId "34557431"]
[BlackFideId "25043153"]
[WhiteElo "1429"]
[BlackElo "2203"]
[Result "1/2-1/2"]
[Round "01"]
[TimeControl "180+1"]
[Date "2022.03.01"]
[WhiteClock "0:00:18"]
[BlackClock "0:00:13"]

1. e4 {[%clk 0:03:00]}  c5 {[%clk 0:02:59]} 2. Nf3 {[%clk 0:03:01]}  Nc6 {[%clk 0:02:59]} 3. Bb5 {[%clk 0:02:48]}  Na5 {[%clk 0:02:59]} 4. Be2 {[%clk 0:02:44]}  a6 {[%clk 0:02:59]} 5. O-O {[%clk 0:02:44]}  b5 {[%clk 0:02:58]} 6. Re1 {[%clk 0:02:41]}  Bb7 {[%clk 0:02:59]} 7. Bf1 {[%clk 0:02:42]}  e6 {[%clk 0:02:58]} 8. c3 {[%clk 0:02:42]}  Nf6 {[%clk 0:02:58]} 9. e5 {[%clk 0:02:42]}  Nd5 {[%clk 0:02:58]} 10. d4 {[%clk 0:02:43]}  cxd4 {[%clk 0:02:59]} 11. cxd4 {[%clk 0:02:44]}  Rc8 {[%clk 0:02:59]} 12. Nbd2 {[%clk 0:02:39]}  h6 {[%clk 0:02:44]} 13. Ne4 {[%clk 0:02:32]}  Be7 {[%clk 0:02:43]} 14. Bd2 {[%clk 0:02:17]}  Nc4 {[%clk 0:02:39]} 15. b3 {[%clk 0:02:11]}  Nxd2 {[%clk 0:02:38]} 16. Nexd2 {[%clk 0:02:10]}  O-O {[%clk 0:02:38]} 17. Ne4 {[%clk 0:01:59]}  f5 {[%clk 0:02:28]} 18. exf6 {[%clk 0:01:56]}  Nxf6 {[%clk 0:02:29]} 19. Nxf6+ {[%clk 0:01:55]}  Rxf6 {[%clk 0:02:30]} 20. Ne5 {[%clk 0:01:52]}  Bd5 {[%clk 0:02:21]} 21. Bd3 {[%clk 0:01:41]}  d6 {[%clk 0:02:16]} 22. Ng4 {[%clk 0:01:41]}  Rf4 {[%clk 0:02:15]} 23. Ne3 {[%clk 0:01:37]}  Bb7 {[%clk 0:02:05]} 24. g3 {[%clk 0:01:28]}  Rf3 {[%clk 0:01:53]} 25. d5 {[%clk 0:01:19]}  Qf8 {[%clk 0:01:52]} 26. Be4 {[%clk 0:01:08]}  Rxf2 {[%clk 0:01:46]} 27. Qg4 {[%clk 0:01:08]}  exd5 {[%clk 0:01:04]} 28. Rf1 {[%clk 0:01:06]}  Bg5 {[%clk 0:00:49]} 29. Nxd5 {[%clk 0:00:52]}  Rxf1+ {[%clk 0:00:31]} 30. Rxf1 {[%clk 0:00:52]}  Rc1 {[%clk 0:00:32]} 31. Qe6+ {[%clk 0:00:44]}  Kh8 {[%clk 0:00:32]} 32. Rxc1 {[%clk 0:00:44]}  Bxc1 {[%clk 0:00:33]} 33. Qg6 {[%clk 0:00:41]}  Kg8 {[%clk 0:00:32]} 34. Qe6+ {[%clk 0:00:32]}  Kh8 {[%clk 0:00:24]} 35. Qg6 {[%clk 0:00:32]}  Qg8 {[%clk 0:00:13]} 36. Ne7 {[%clk 0:00:16]}  Bxe4 {[%clk 0:00:13]} 37. Qxe4 {[%clk 0:00:17]}  Qf7 {[%clk 0:00:14]} 38. Ng6+ {[%clk 0:00:17]}  Kg8 {[%clk 0:00:14]} 39. Qa8+ {[%clk 0:00:17]}  Kh7 {[%clk 0:00:13]} 40. Nf8+ {[%clk 0:00:17]}  Kg8 {[%clk 0:00:12]} 41. Ng6+ {[%clk 0:00:17]}  Kh7 {[%clk 0:00:13]} 42. Nf8+ {[%clk 0:00:18]}  Kg8 {[%clk 0:00:13]} 43. Ng6+ {[%clk 0:00:18]} 1/2-1/2


[Site "https://www.chess.com"]

[Event "Titled Tuesday Blitz March 01 Early 2022"]
[White "Balaji, Aaravamudhan"]
[Black "Maung, Maung Kyaw Zaw Hein"]
[WhiteFideId "436224"]
[BlackFideId "13001698"]
[WhiteElo "2085"]
[BlackElo "1785"]
[Result "0-1"]
[Round "01"]
[TimeControl "180+1"]
[Date "2022.03.01"]
[WhiteClock "0:00:11"]
[BlackClock "0:00:19"]

1. Nf3 {[%clk 0:03:00]}  d5 {[%clk 0:02:56]} 2. g3 {[%clk 0:03:01]}  Nf6 {[%clk 0:02:56]} 3. Bg2 {[%clk 0:03:02]}  Bf5 {[%clk 0:02:57]} 4. O-O {[%clk 0:03:02]}  Nbd7 {[%clk 0:02:57]} 5. d3 {[%clk 0:03:03]}  c6 {[%clk 0:02:57]} 6. c4 {[%clk 0:03:03]}  e6 {[%clk 0:02:57]} 7. Qb3 {[%clk 0:03:01]}  Qb6 {[%clk 0:02:57]} 8. Be3 {[%clk 0:03:02]}  Qxb3 {[%clk 0:02:57]} 9. axb3 {[%clk 0:03:03]}  a6 {[%clk 0:02:56]} 10. Nc3 {[%clk 0:02:58]}  Bd6 {[%clk 0:02:49]} 11. Rfc1 {[%clk 0:02:57]}  O-O {[%clk 0:02:48]} 12. cxd5 {[%clk 0:02:53]}  exd5 {[%clk 0:02:48]} 13. Na4 {[%clk 0:02:50]}  Rfe8 {[%clk 0:02:44]} 14. Kf1 {[%clk 0:02:27]}  h6 {[%clk 0:02:37]} 15. Nb6 {[%clk 0:02:23]}  Nxb6 {[%clk 0:02:34]} 16. Bxb6 {[%clk 0:02:24]}  Re7 {[%clk 0:02:24]} 17. Bc5 {[%clk 0:02:22]}  Bxc5 {[%clk 0:02:20]} 18. Rxc5 {[%clk 0:02:23]}  Nd7 {[%clk 0:02:13]} 19. Rca5 {[%clk 0:02:23]}  Rae8 {[%clk 0:02:03]} 20. Nd4 {[%clk 0:02:22]}  Bg6 {[%clk 0:02:02]} 21. Bf3 {[%clk 0:02:21]}  Ne5 {[%clk 0:02:01]} 22. Rd1 {[%clk 0:02:07]}  Nxf3 {[%clk 0:02:00]} 23. exf3 {[%clk 0:02:08]}  Rc7 {[%clk 0:01:28]} 24. Rc5 {[%clk 0:01:56]}  f6 {[%clk 0:01:22]} 25. f4 {[%clk 0:01:50]}  Rce7 {[%clk 0:01:17]} 26. Rcc1 {[%clk 0:01:39]}  Bh5 {[%clk 0:01:17]} 27. Re1 {[%clk 0:01:34]}  Rxe1+ {[%clk 0:01:14]} 28. Rxe1 {[%clk 0:01:34]}  Rxe1+ {[%clk 0:01:14]} 29. Kxe1 {[%clk 0:01:35]}  Bg4 {[%clk 0:01:07]} 30. Kd2 {[%clk 0:01:30]}  Kf7 {[%clk 0:01:06]} 31. Kc3 {[%clk 0:01:15]}  c5 {[%clk 0:01:06]} 32. Nc2 {[%clk 0:01:02]}  d4+ {[%clk 0:01:01]} 33. Kc4 {[%clk 0:01:02]}  b6 {[%clk 0:00:56]} 34. Kd5 {[%clk 0:01:02]}  Be6+ {[%clk 0:00:55]} 35. Kc6 {[%clk 0:01:02]}  Bxb3 {[%clk 0:00:55]} 36. Ne1 {[%clk 0:00:57]}  c4 {[%clk 0:00:54]} 37. dxc4 {[%clk 0:00:55]}  Bxc4 {[%clk 0:00:54]} 38. Kxb6 {[%clk 0:00:55]}  d3 {[%clk 0:00:54]} 39. Nf3 {[%clk 0:00:56]}  Ke6 {[%clk 0:00:48]} 40. Kc5 {[%clk 0:00:52]}  Bd5 {[%clk 0:00:45]} 41. f5+ {[%clk 0:00:41]}  Kxf5 {[%clk 0:00:44]} 42. Kxd5 {[%clk 0:00:42]}  Kg4 {[%clk 0:00:44]} 43. Ke4 {[%clk 0:00:35]}  f5+ {[%clk 0:00:41]} 44. Ke3 {[%clk 0:00:35]}  g5 {[%clk 0:00:41]} 45. Ne5+ {[%clk 0:00:30]}  Kh3 {[%clk 0:00:41]} 46. Nxd3 {[%clk 0:00:29]}  Kxh2 {[%clk 0:00:40]} 47. b4 {[%clk 0:00:30]}  h5 {[%clk 0:00:39]} 48. Kf3 {[%clk 0:00:18]}  h4 {[%clk 0:00:34]} 49. gxh4 {[%clk 0:00:18]}  gxh4 {[%clk 0:00:34]} 50. Nf4 {[%clk 0:00:19]}  Kg1 {[%clk 0:00:32]} 51. Ke3 {[%clk 0:00:17]}  Kf1 {[%clk 0:00:29]} 52. Kf3 {[%clk 0:00:15]}  Kg1 {[%clk 0:00:29]} 53. Nh3+ {[%clk 0:00:15]}  Kh2 {[%clk 0:00:29]} 54. Ng5 {[%clk 0:00:16]}  Kg1 {[%clk 0:00:28]} 55. Ke3 {[%clk 0:00:12]}  Kg2 {[%clk 0:00:21]} 56. Ke2 {[%clk 0:00:13]}  f4 {[%clk 0:00:20]} 57. Ke1 {[%clk 0:00:09]}  h3 {[%clk 0:00:15]} 58. Nxh3 {[%clk 0:00:05]}  Kxh3 {[%clk 0:00:16]} 59. Ke2 {[%clk 0:00:06]}  Kg2 {[%clk 0:00:16]} 60. Kd3 {[%clk 0:00:04]}  Kxf2 {[%clk 0:00:16]} 61. Ke4 {[%clk 0:00:05]}  Kg3 {[%clk 0:00:17]} 62. Kd5 {[%clk 0:00:06]}  f3 {[%clk 0:00:17]} 63. Kc6 {[%clk 0:00:07]}  f2 {[%clk 0:00:18]} 64. Kb6 {[%clk 0:00:08]}  f1=Q {[%clk 0:00:18]} 65. Ka7 {[%clk 0:00:08]}  Qb5 {[%clk 0:00:18]} 66. Ka8 {[%clk 0:00:09]}  Kf4 {[%clk 0:00:18]} 67. Ka7 {[%clk 0:00:10]}  Ke5 {[%clk 0:00:18]} 68. Ka8 {[%clk 0:00:11]}  Kd6 {[%clk 0:00:19]} 0-1


[Site "https://www.chess.com"]

[Event "Titled Tuesday Blitz March 01 Early 2022"]
[White "Beerdsen, Thomas"]
[Black "Manelyuk, Daniil"]
[WhiteFideId "1030108"]
[BlackFideId "44173920"]
[WhiteElo "2585"]
[BlackElo "2222"]
[Result "1-0"]
[Round "01"]
[TimeControl "180+1"]
[Date "2022.03.01"]
[WhiteClock "0:01:00"]
[BlackClock "0:00:04"]

1. e4 {[%clk 0:03:00]}  e6 {[%clk 0:02:56]} 2. d4 {[%clk 0:02:59]}  d5 {[%clk 0:02:56]} 3. Nc3 {[%clk 0:03:00]}  Bb4 {[%clk 0:02:55]} 4. e5 {[%clk 0:02:59]}  c5 {[%clk 0:02:55]} 5. a3 {[%clk 0:03:00]}  Bxc3+ {[%clk 0:02:55]} 6. bxc3 {[%clk 0:03:01]}  Ne7 {[%clk 0:02:56]} 7. Qg4 {[%clk 0:03:00]}  Qc7 {[%clk 0:02:55]} 8. Qxg7 {[%clk 0:03:00]}  Rg8 {[%clk 0:02:55]} 9. Qxh7 {[%clk 0:03:01]}  cxd4 {[%clk 0:02:55]} 10. Qd3 {[%clk 0:03:02]}  Nbc6 {[%clk 0:02:29]} 11. cxd4 {[%clk 0:02:59]}  Nxe5 {[%clk 0:02:24]} 12. Qd2 {[%clk 0:02:33]}  Nc4 {[%clk 0:02:18]} 13. Qc3 {[%clk 0:02:25]}  Bd7 {[%clk 0:02:01]} 14. Nf3 {[%clk 0:02:21]}  Rc8 {[%clk 0:01:55]} 15. h4 {[%clk 0:02:17]}  Qb6 {[%clk 0:01:44]} 16. Qb4 {[%clk 0:02:04]}  Qxb4+ {[%clk 0:01:15]} 17. axb4 {[%clk 0:02:05]}  a6 {[%clk 0:01:15]} 18. Bg5 {[%clk 0:02:00]}  Nd6 {[%clk 0:01:06]} 19. Bd3 {[%clk 0:01:59]}  Ne4 {[%clk 0:00:58]} 20. Bxe4 {[%clk 0:01:59]}  dxe4 {[%clk 0:00:59]} 21. Nd2 {[%clk 0:02:00]}  f5 {[%clk 0:00:32]} 22. Kd1 {[%clk 0:01:59]}  Kf7 {[%clk 0:00:30]} 23. f3 {[%clk 0:01:58]}  Nd5 {[%clk 0:00:23]} 24. fxe4 {[%clk 0:01:55]}  Nc3+ {[%clk 0:00:23]} 25. Kc1 {[%clk 0:01:51]}  fxe4 {[%clk 0:00:20]} 26. Rf1+ {[%clk 0:01:51]}  Kg7 {[%clk 0:00:21]} 27. Kb2 {[%clk 0:01:47]}  Na4+ {[%clk 0:00:20]} 28. Kc1 {[%clk 0:01:28]}  Bb5 {[%clk 0:00:18]} 29. Re1 {[%clk 0:01:22]}  Nc3 {[%clk 0:00:17]} 30. Ra3 {[%clk 0:01:20]}  Nd5 {[%clk 0:00:16]} 31. Nxe4 {[%clk 0:01:17]}  Nxb4 {[%clk 0:00:16]} 32. Rc3 {[%clk 0:01:15]}  Rxc3 {[%clk 0:00:14]} 33. Nxc3 {[%clk 0:01:15]}  Rc8 {[%clk 0:00:15]} 34. Kd2 {[%clk 0:01:15]}  Rc4 {[%clk 0:00:13]} 35. Nxb5 {[%clk 0:01:13]}  axb5 {[%clk 0:00:14]} 36. c3 {[%clk 0:01:13]}  Nd5 {[%clk 0:00:14]} 37. Rxe6 {[%clk 0:01:11]}  Nxc3 {[%clk 0:00:13]} 38. h5 {[%clk 0:01:06]}  Nd5 {[%clk 0:00:13]} 39. Kd3 {[%clk 0:01:02]}  Rc3+ {[%clk 0:00:13]} 40. Ke4 {[%clk 0:01:02]}  Nc7 {[%clk 0:00:06]} 41. Re7+ {[%clk 0:01:02]}  Kg8 {[%clk 0:00:05]} 42. h6 {[%clk 0:01:02]}  Rc6 {[%clk 0:00:03]} 43. h7+ {[%clk 0:01:02]}  Kh8 {[%clk 0:00:03]} 44. Bf4 {[%clk 0:01:00]}  Re6+ {[%clk 0:00:03]} 45. Be5+ {[%clk 0:01:00]}  Rxe5+ {[%clk 0:00:03]} 46. Kxe5 {[%clk 0:00:58]}  Na6 {[%clk 0:00:03]} 47. Kf6 {[%clk 0:00:58]}  b4 {[%clk 0:00:04]} 48. Kg6 {[%clk 0:00:59]}  Nc7 {[%clk 0:00:04]} 49. Rxc7 {[%clk 0:00:59]}  b3 {[%clk 0:00:04]} 50. Rc8# {[%clk 0:01:00]} 1-0


[Site "https://www.chess.com"]